[Event "Austrian Bundesliga 2023-24"]
[Site "Austria"]
[Date "2024.03.21"]
[Round "8.10"]
[White "Bosiocic, Marin"]
[Black "Froewis, Georg"]
[Result "1-0"]
[ECO "A13"]
[WhiteElo "2549"]
[BlackElo "2450"]
[Annotator "TA"]
[PlyCount "65"]
[EventDate "2023.10.21"]
[EventType "team-tourn"]
[EventCountry "AUT"]
[SourceTitle "playchess.com"]
[Source "ChessBase"]
[SourceQuality "1"]
[TimeControl "40/5400+30:1800+30"]

{[%evp 9,65,-62,24,40,80,47,68,61,62,66,46,-36,-26,-23,-16,0,0,0,83,104,112,103,103,71,211,204,196,201,219,217,200,96,190,222,305,317,370,368,361,356,466,463,495,469,544,530,531,487,533,531,5824,5581,29986,2915,29995,29996,29996,549]} 1. Nf3 {[%emt 0:00:27]} d5 {[%emt 0:00:11]} 2. c4 {[%emt 0:00:18]} e6 {[%emt 0:00:05]} 3. g3 {[%emt 0:00:06]} Nf6 {[%emt 0:00:11]} 4. Bg2 {[%emt 0:00:05]} d4 {[%emt 0:00:09]} 5. b4 {[%emt 0:02:45]} a5 {[%emt 0:04:59]} ({Günstiger ist} 5... Bxb4 $15 6. Qa4+ Nc6) 6. b5 $11 {[%emt 0:02:14]} Bc5 {[%emt 0:02:26]} 7. Bb2 {[%emt 0:04:48]} O-O {[%emt 0:02:33]} 8. e3 {[%emt 0:00:48] Weiß steht etwas besser.} e5 {[%emt 0:02:42]} 9. Nxe5 {[%emt 0:05:04]} Re8 {[%emt 0:01:17]} 10. f4 {[%emt 0:04:26]} (10. Nf3 $14) 10... Nbd7 {[%emt 0:24:53]} 11. exd4 {[%emt 0:07:01]} (11. Bxd4 Bxd4 12. exd4 Nxe5 (12... Nb6 13. h3 $11) 13. dxe5 Qd4 $17) 11... Nxe5 {[%emt 0:00:30]} 12. dxe5 {[%emt 0:00:20] Und d4 würde nun gewinnen.} (12. dxc5 Nf3+ (12... Nxc4+ $2 13. Be5 $19) 13. Kf2 Ng4+ 14. Kf1 Qd3+) 12... Ng4 {[%emt 0:36:11]} 13. Rf1 {[%emt 0:00:14] Verhindert Nf2} Bd4 {[%emt 0:07:19]} (13... Nxh2 $11 14. Rh1 Ng4) 14. Qc2 $1 $16 {[%emt 0:03:11] Bxd4 wäre nun fies.} Bf5 {[%emt 0:05:28]} 15. Qxf5 {[%emt 0:00:08] Und jetzt Qc2 wäre schön.} Bxb2 {[%emt 0:00:02]} 16. Qxg4 {[%emt 0:00:27][%cal Og2b7] Zielt auf Bxb7! ab.} Bxa1 {[%emt 0:00:10]} (16... Rb8 $16) 17. Bxb7 $18 {[%emt 0:04:46]} Rb8 {[%emt 0:04:12] [#]} 18. Bd5 {[%emt 0:02:13]} c6 {[%emt 0:02:42]} 19. Bxc6 {[%emt 0:00:32]} ({Minderwertig wäre} 19. bxc6 Rxb1+ 20. Ke2 Rxf1 21. Kxf1 Qe7 $15) 19... Qd3 {[%emt 0:00:02]} 20. Kf2 {[%emt 0:00:42]} (20. Qd1 $18 {ist viel giftiger.} Bxe5 21. fxe5 (21. Bxe8 Bd4 $11) 21... Rxe5+ 22. Kf2 Qxc4 23. Kg1 (23. Nc3 Rd8 $18)) 20... Bd4+ {[%emt 0:01:40]} (20... Red8 $16 {war angesagt.}) 21. Kg2 {[%emt 0:00:09]} Red8 {[%emt 0:01:00]} 22. Bd5 {[%emt 0:01:13]} a4 {[%emt 0:00:49]} 23. Qf3 {[%emt 0:01:45]} Qc2 {[%emt 0:00:16]} 24. Qe4 {[%emt 0:00:55]} Qb2 {[%emt 0:00:26]} 25. Qd3 {[%emt 0:03:47]} g6 {[%emt 0:01:29]} 26. Re1 {[%emt 0:00:38]} Rxb5 {[%emt 0:00:40]} 27. Bxf7+ {[%emt 0:05:22]} Kxf7 {[%emt 0:00:13][%cal Bg8f7,Bf7e7,Be7d6][%mdl 32]} 28. cxb5 {[%emt 0:00:12]} Qxa2 {[%emt 0:00:10]} 29. Nc3 {[%emt 0:01:44] Wehrt Qd5+ ab} Qb3 {[%emt 0:01:10]} 30. e6+ {[%emt 0:01:09]} Ke7 {[%emt 0:00:02]} 31. Qf3 {[%emt 0:00:09]} (31. Qe4 $142 Kf6 32. e7 Re8 33. Qxd4+ Kf7 34. Qd7 (34. Nxa4 Qxb5 35. Nc3 Qb3 $18) 34... Qb4 35. Ne4 Qxe4+ 36. Rxe4) 31... Bxc3 {[%emt 0:00:40] [#]} 32. Qb7+ $1 {[%emt 0:00:18]} (32. dxc3 Qxb5 33. Qe3 Qa5 $18) 32... Kd6 {[%emt 0:00:05]} 33. Qc6+ {[%emt 0:00:11] Gewichteter Fehlerwert: Weiß=0.12 (sehr präzise) /Schwarz=0.67.  Fehler:       	Weiß=2     	Schwarz=3     Ungenau:       	Weiß=1     	Schwarz=5     OK:         	Weiß=15    	Schwarz=7     Bester:       	Weiß=3     	Schwarz=3     Stark:        	Weiß=1     	---} 1-0

[Event "Austrian Bundesliga 2023-24"]
[Site "Austria"]
[Date "2024.03.21"]
[Round "8.11"]
[White "Balint, Peter"]
[Black "Saric, Ante"]
[Result "0-1"]
[ECO "B41"]
[WhiteElo "2345"]
[BlackElo "2505"]
[Annotator "TA"]
[PlyCount "84"]
[EventDate "2023.10.21"]
[EventType "team-tourn"]
[EventCountry "AUT"]
[SourceTitle "playchess.com"]
[Source "ChessBase"]
[SourceQuality "1"]
[TimeControl "40/5400+30:1800+30"]

{[%evp 14,84,38,44,53,46,47,52,34,43,50,49,54,48,56,44,34,30,38,27,29,28,72,95,86,96,71,27,40,-43,-41,-31,-54,-46,-43,-45,-45,-56,-38,-30,-30,-34,-30,-75,-65,-86,-84,-125,-74,-118,-104,-137,-125,-141,-137,-133,-138,-150,-143,-147,-117,-139,0,-139,-109,-144,-144,-255,-257,-545,-519,-29977,-29978]} 1. e4 {[%emt 0:00:04]} c5 {[%emt 0:00:08]} 2. Nf3 {[%emt 0:00:06]} e6 {[%emt 0:00:05]} 3. d4 {[%emt 0:00:03]} cxd4 {[%emt 0:00:06]} 4. Nxd4 {[%emt 0:00:04]} a6 {[%emt 0:00:08]} 5. c4 {[%emt 0:00:18]} Nf6 {[%emt 0:00:23]} 6. Nc3 {[%emt 0:00:04]} Qc7 {[%emt 0:00:05]} 7. a3 {[%emt 0:00:25]} Nc6 {[%emt 0:00:24]} 8. Be3 {[%emt 0:12:41]} Bd6 {[%emt 0:00:37]} 9. Qd2 {[%emt 0:08:57]} Nxd4 {[%emt 0:04:06]} 10. Bxd4 {[%emt 0:04:50]} Bf4 {[%emt 0:01:26] Weiß steht etwas besser.} 11. Be3 {[%emt 0:09:36]} Bxe3 {[%emt 0:00:40]} 12. Qxe3 {[%emt 0:00:05]} d6 {[%emt 0:02:00]} 13. Be2 {[%emt 0:01:12]} O-O {[%emt 0:03:01]} 14. O-O {[%emt 0:01:57]} e5 {[%emt 0:02:20]} 15. Rac1 {[%emt 0:03:58]} Be6 {[%emt 0:00:34]} 16. Rfd1 {[%emt 0:01:43]} Rac8 {[%emt 0:02:20]} 17. Na4 {[%emt 0:15:43]} Qa5 {[%emt 0:31:00]} 18. Nb6 {[%emt 0:02:54][%cal Ob2b4]} Rc6 {[%emt 0:00:10]} 19. Nd5 {[%emt 0:00:46]} Qd8 {[%emt 0:13:25] Es drohte Ne7+} 20. Nb4 {[%emt 0:06:52]} Rc5 {[%emt 0:01:20]} 21. Nd3 {[%emt 0:00:30]} (21. g3 $1 $14) 21... Rxc4 $15 {[%emt 0:00:48]} 22. Rxc4 {[%emt 0:09:04]} Bxc4 {[%emt 0:00:09]} 23. Nxe5 {[%emt 0:03:34]} Bxe2 {[%emt 0:00:09]} 24. Qxe2 {[%emt 0:00:04]} Re8 {[%emt 0:01:00]} 25. Nc4 {[%emt 0:03:44]} Nxe4 {[%emt 0:08:46]} 26. Qd3 {[%emt 0:05:27][%cal Of2f3] Lässt Nc3 nicht zu} b5 $36 {[%emt 0:01:14][%mdl 2048] Schwarz hat Initiative.} 27. Ne3 {[%emt 0:01:02]} (27. Nxd6 $2 {verliert.} Qxd6 28. h4 Rd8 (28... Qxd3 $2 29. Rxd3 g6 30. f3 $19) 29. Qxd6 Rxd6 $19) 27... Qg5 {[%emt 0:06:45]} 28. Re1 {[%emt 0:04:27]} Qf4 {[%emt 0:02:33]} 29. Re2 {[%emt 0:01:50]} g6 {[%emt 0:07:58][%cal Oe4f2]} 30. Qd1 {[%emt 0:01:11]} Rc8 {[%emt 0:03:27] Schwarz steht deutlich aktiver.} (30... Nxf2 $142 31. Rxf2 Qxe3 32. Qxd6 Qc1+ 33. Rf1 Qe3+ (33... Qxb2 34. Qxa6 Qe5 35. h3 $17) 34. Rf2 Qa7) 31. Rc2 {[%emt 0:01:27]} Rc5 {[%emt 0:01:41][%cal Oe4f2] [#] Droht stark ...Nxf2!} 32. b4 {[%emt 0:00:57]} Rxc2 {[%emt 0:01:20]} 33. Qxc2 $17 {[%emt 0:00:06][%mdl 4096] Endspiel. KQN-KQN} Kg7 {[%emt 0:00:49]} 34. h3 {[%emt 0:01:01]} h5 {[%emt 0:01:22]} 35. Qe2 {[%emt 0:00:37]} Qe5 {[%emt 0:00:38]} 36. Qd3 {[%emt 0:00:25]} Qa1+ {[%emt 0:02:01]} 37. Nf1 {[%emt 0:00:19]} Qe5 {[%emt 0:00:10]} 38. Ne3 {[%emt 0:00:20]} Nf6 {[%emt 0:00:12]} 39. Nc2 {[%emt 0:00:53]} Nd5 {[%emt 0:01:05]} 40. Nd4 {[%emt 0:00:00]} (40. Kh1 $17) 40... Qe1+ $19 {[%emt 0:00:00]} 41. Kh2 $2 {[%emt 0:06:11]} (41. Qf1 Qc3 42. Qd1) 41... Qxf2 {[%emt 0:04:59] ...Ne3 ist eine echte Drohung.} 42. Nxb5 {[%emt 0:02:28] [#]} (42. Nc2 $19 Qxg2+ 43. Kxg2 Nf4+ 44. Kf3 Nxd3 45. Ne3) 42... Ne3 {[%emt 0:00:15] Gewichteter Fehlerwert: Weiß=0.49/Schwarz=0.12 (sehr präzise) .  Fehler:       	Weiß=4     	Schwarz=1     Ungenau:       	Weiß=6     	Schwarz=1     OK:         	Weiß=9     	Schwarz=18    Bester:       	Weiß=1     	Schwarz=5} 0-1

[Event "Austrian Bundesliga 2023-24"]
[Site "Austria"]
[Date "2024.03.21"]
[Round "8.12"]
[White "Rogic, Davor"]
[Black "Steindl, Johannes"]
[Result "1-0"]
[ECO "B62"]
[WhiteElo "2418"]
[BlackElo "2302"]
[Annotator "RC"]
[PlyCount "73"]
[EventDate "2023.10.21"]
[EventType "team-tourn"]
[EventCountry "AUT"]
[SourceTitle "playchess.com"]
[Source "ChessBase"]
[SourceQuality "1"]
[TimeControl "40/5400+30:1800+30"]

1. e4 {[%emt 0:00:06]} c5 {[%emt 0:00:04]} 2. Nf3 {[%emt 0:00:09]} d6 {[%emt 0:00:04]} 3. d4 {[%emt 0:00:19]} cxd4 {[%emt 0:00:04]} 4. Nxd4 {[%emt 0:00:06]} Nf6 {[%emt 0:00:03]} 5. Nc3 {[%emt 0:00:16]} Nc6 {[%emt 0:00:04]} 6. Bg5 {[%emt 0:01:47]} e6 {[%emt 0:00:05]} 7. Qd3 {[%emt 0:00:27]} Bd7 {[%emt 0:00:15]} 8. O-O-O {[%emt 0:01:24]} a6 {[%emt 0:00:14]} 9. Nb3 {[%emt 0:08:53]} b5 {[%emt 0:15:14]} 10. f4 {[%emt 0:01:44]} h6 {[%emt 0:07:40]} 11. Bxf6 {[%emt 0:08:05]} Qxf6 {[%emt 0:00:37]} 12. g3 {[%emt 0:01:02]} Qd8 {[%emt 0:03:09]} 13. Bg2 {[%emt 0:01:47]} Rc8 {[%emt 0:03:52]} 14. Kb1 {[%emt 0:05:02]} Be7 {[%emt 0:00:33]} 15. h4 {[%emt 0:03:27]} b4 {[%emt 0:13:06]} 16. Ne2 {[%emt 0:01:53]} a5 {[%emt 0:08:15]} 17. Nd2 {[%emt 0:14:04]} Na7 {[%emt 0:10:53]} 18. c4 {[%emt 0:01:52]} bxc3 {[%emt 0:03:39]} 19. Nxc3 {[%emt 0:00:23]} O-O {[%emt 0:00:25]} 20. g4 {[%emt 0:05:12]} Qb6 {[%emt 0:11:27]} 21. Nc4 {[%emt 0:07:35]} Qb8 {[%emt 0:01:22]} 22. Ka1 {[%emt 0:12:25]} Nb5 {[%emt 0:03:14]} 23. Ne2 {[%emt 0:00:08]} a4 {[%emt 0:05:25]} 24. a3 {[%emt 0:04:04]} Rc7 {[%emt 0:05:31]} 25. g5 {[%emt 0:00:32]} Rfc8 {[%emt 0:01:30]} 26. Ne3 {[%emt 0:05:35]} h5 {[%emt 0:00:03]} 27. f5 {[%emt 0:01:27]} Be8 {[%emt 0:04:11]} 28. Bh3 {[%emt 0:01:44]} Nxa3 {[%emt 0:01:22]} 29. Qxa3 d5 {[%emt 0:00:02]} 30. Qa2 {[%emt 0:04:20]} a3 {[%emt 0:00:24]} 31. b3 {[%emt 0:01:03]} Qb6 {[%emt 0:01:23]} 32. fxe6 {[%emt 0:02:54]} fxe6 {[%emt 0:00:01]} 33. Qd2 {[%emt 0:02:14]} Bb4 {[%emt 0:01:35]} 34. Bxe6+ {[%emt 0:00:33]} Qxe6 {[%emt 0:01:00]} 35. Qxb4 {[%emt 0:00:02]} Bg6 {[%emt 0:00:41]} 36. Nxd5 {[%emt 0:01:04]} Bxe4 {[%emt 0:00:30]} 37. Nxc7 {[%emt 0:01:07]} 1-0

[Event "Austrian Bundesliga 2023-24"]
[Site "Austria"]
[Date "2024.03.21"]
[Round "8.13"]
[White "Mamedyarov, Shakhriyar"]
[Black "Vogel, Roven"]
[Result "1/2-1/2"]
[ECO "D31"]
[WhiteElo "2734"]
[BlackElo "2521"]
[Annotator "TA"]
[PlyCount "162"]
[EventDate "2023.10.21"]
[EventType "team-tourn"]
[EventCountry "AUT"]
[SourceTitle "playchess.com"]
[Source "ChessBase"]
[SourceQuality "1"]
[TimeControl "40/5400+30:1800+30"]

{[%evp 9,162,24,22,28,27,25,24,25,30,29,29,32,37,-20,0,0,25,24,14,10,12,15,14,0,0,0,0,0,11,0,10,0,11,-17,0,0,29,52,35,26,25,27,63,0,0,0,0,0,31,31,97,52,45,42,39,47,35,37,33,50,152,141,268,278,232,284,272,229,258,85,125,41,594,39,33,8,8,0,0,0,62,69,87,70,62,66,91,0,0,0,0,0,0,0,0,0,0,0,0,0,0,0,0,0,0,0,0,0,0,0,0,0,0,0,0,0,0,0,0,0,0,0,0,0,0,0,0,0,0,0,0,0,0,0,0,0,0,0,0,0,0,0,0,0,0,0,0,0,0,0,0,0,0,0,0]} 1. d4 {[%emt 0:00:30]} d5 {[%emt 0:00:30]} 2. c4 {[%emt 0:00:00]} e6 {[%emt 0:00:00]} 3. Nc3 {[%emt 0:00:11]} a6 {[%emt 0:00:00]} 4. cxd5 {[%emt 0:02:47]} exd5 {[%emt 0:00:14]} 5. Nf3 {[%emt 0:00:42]} Nf6 {[%emt 0:00:08]} 6. Bg5 {[%emt 0:03:55]} Be6 {[%emt 0:00:25]} 7. e3 {[%emt 0:00:05]} Nbd7 {[%emt 0:00:07]} 8. Bd3 {[%emt 0:01:13] White has an edge.} Bd6 {[%emt 0:00:20]} 9. h3 {[%emt 0:01:53]} c6 {[%emt 0:00:08]} 10. Qd2 {[%emt 0:00:57]} Qc7 {[%emt 0:04:26]} 11. a3 {[%emt 0:00:52]} (11. Bf4 $14) 11... O-O {[%emt 0:01:27]} 12. Bf4 {[%emt 0:00:38]} Nb6 {[%emt 0:12:19]} 13. Bxd6 {[%emt 0:02:52]} Qxd6 {[%emt 0:00:28]} 14. O-O {[%emt 0:00:06]} Qe7 {[%emt 0:04:02]} 15. Qc2 {[%emt 0:01:03]} g6 {[%emt 0:03:45]} 16. b4 {[%emt 0:03:04]} Nc8 {[%emt 0:02:29]} 17. Rab1 {[%emt 0:03:56]} Nd6 {[%emt 0:01:14]} 18. a4 {[%emt 0:00:10]} Rfc8 {[%emt 0:06:52]} 19. Rfe1 {[%emt 0:12:22]} a5 {[%emt 0:12:05]} 20. Qb2 {[%emt 0:03:10]} Nfe4 {[%emt 0:09:14]} 21. Bxe4 {[%emt 0:03:03]} dxe4 {[%emt 0:01:37]} (21... Nc4 $5 22. Qc2 (22. Qb3 $2 dxe4 23. Nxe4 Nd2 $19) 22... Na3 $15 (22... dxe4 23. Qxe4 axb4 24. d5 $11)) 22. Nd2 {[%emt 0:00:07]} Nc4 {[%emt 0:04:15]} 23. Nxc4 {[%emt 0:00:20]} Bxc4 {[%emt 0:00:02]} 24. bxa5 {[%emt 0:00:19]} Rc7 {[%emt 0:09:50]} 25. Qd2 {[%emt 0:04:06]} Bd3 {[%emt 0:03:06]} 26. Rbc1 {[%emt 0:07:54]} (26. Rb6 $14) 26... Qg5 $11 {[%emt 0:02:10]} 27. d5 {[%emt 0:06:57]} cxd5 {[%emt 0:02:26][%cal Oa8c8]} 28. Nb5 {[%emt 0:00:08]} Rc4 {[%emt 0:02:52]} 29. Nd6 $1 {[%emt 0:02:33][%csl LRb7,LRc4]} Rxa4 {[%emt 0:03:37]} (29... Rxc1 $14 30. Rxc1 d4) 30. Qb2 {[%emt 0:05:15]} Rf8 $1 {[%emt 0:07:36]} (30... R4xa5 $2 {perishes.} 31. Nxf7 Kxf7 32. Rc7+ Ke6 33. Qxb7 $18 (33. Qb6+ Ke5 $18)) 31. Rc5 {[%emt 0:07:45][%cal Oe1c1,Bc1c5,Bc5d5,Bd5e5,Be5e7][%mdl 32] Really sharp!} Qe7 $1 {[%emt 0:04:36]} 32. Rxd5 $40 {[%emt 0:01:14][%cal Oe1c1][%mdl 128] Black needs to defend precisely.} Qe6 {[%emt 0:01:29]} 33. Qe5 {[%emt 0:01:40]} Qxe5 {[%emt 0:01:16]} 34. Rxe5 {[%emt 0:00:02][%cal Oe1c1]} Rb4 {[%emt 0:01:45]} (34... Ra8 $14) 35. Re7 $16 {[%emt 0:00:01] White is more active.} b6 {[%emt 0:00:35] [#]} (35... b5 $16 {was necessary.}) 36. Rc1 $1 $18 {[%emt 0:00:05]} bxa5 {[%emt 0:00:28]} 37. Rcc7 {[%emt 0:00:05]} Kg7 {[%emt 0:00:29]} 38. Nxf7 {[%emt 0:00:10]} Kf6 {[%emt 0:00:24][%cal Of8c8]} 39. h4 $2 {[%emt 0:01:57]} (39. g4 $18 {Threatening mate with g5+.} h6 40. Kg2 (40. Nxh6 Kg5 $18)) 39... Rc4 {[%emt 0:00:43] [#]} 40. Ra7 {[%emt 0:00:00]} ({White should play} 40. Rcd7 $1 $16 {And now Ng5 would win.} Rc1+ 41. Kh2) 40... Rc1+ {[%emt 0:00:00]} 41. Kh2 {[%emt 0:00:10][%cal Of7g5] aiming for Ng5!} Ra8 $1 {[%emt 0:05:49]} 42. Nh6 {[%emt 0:15:07] Intending Ng4+ and mate.} (42. Rxa8 {simplifies} Kxe7 43. Ne5 Rc2 44. Kg3) 42... Rxa7 {[%emt 0:01:56]} 43. Ng8+ {[%emt 0:00:08]} Kf5 {[%emt 0:00:05] Threatens to win with ...Rxe7.} 44. Rxa7 $11 {[%emt 0:00:01][%mdl 4096] Endgame. KRB-KRN} Ra1 {[%emt 0:07:47]} ({Better is} 44... Rc5 $11) 45. Rxh7 $14 {[%emt 0:03:03] Ne7+ would now be deadly.} a4 {[%emt 0:01:51]} 46. Ne7+ {[%emt 0:01:33]} Kf6 {[%emt 0:03:44]} 47. Nd5+ $1 {[%emt 0:02:35]} Ke5 {[%emt 0:03:48]} 48. Nc3 {[%emt 0:08:01]} ({White should try} 48. Nf4 $16 Kf6 49. Rh8) 48... Ra3 $1 $11 {[%emt 0:01:11] The position is equal.} 49. Rc7 {[%emt 0:00:15]} Kd6 {[%emt 0:00:21] Inhibits Rc6+.} 50. Rc8 {[%emt 0:00:04]} Kd7 $1 {[%emt 0:00:14]} 51. Rc5 {[%emt 0:00:10]} Kd6 {[%emt 0:00:08]} 52. Nxa4 {[%emt 0:00:05]} Rxa4 {[%emt 0:00:06] KRB-KR} 53. Rg5 {[%emt 0:00:03]} Ra2 {[%emt 0:01:25]} 54. Rxg6+ {[%emt 0:00:07]} Ke5 {[%emt 0:00:08]} 55. Kg3 {[%emt 0:00:06]} Ra1 {[%emt 0:00:42]} 56. Rg5+ {[%emt 0:00:54]} Kf6 {[%emt 0:00:01]} 57. Kg4 {[%emt 0:00:54]} Rg1 {[%emt 0:01:34]} 58. Kf4 {[%emt 0:00:56]} Rf1 {[%emt 0:00:48]} 59. Rf5+ {[%emt 0:00:17]} Kg6 {[%emt 0:01:00]} 60. h5+ {[%emt 0:00:28]} Kh6 {[%emt 0:01:11]} 61. Rf6+ {[%emt 0:00:13]} Kh7 {[%emt 0:01:07]} 62. Kg5 {[%emt 0:00:27]} Rg1 {[%emt 0:00:47]} 63. g3 {[%emt 0:00:53]} Be2 {[%emt 0:01:12]} 64. Rh6+ {[%emt 0:07:36]} Kg8 {[%emt 0:00:48]} 65. Rg6+ {[%emt 0:00:19]} Kh7 {[%emt 0:00:26]} 66. Re6 {[%emt 0:00:03]} Rg2 {[%emt 0:01:08]} 67. Re7+ {[%emt 0:01:46]} Kg8 {[%emt 0:00:06]} 68. Rxe4 {[%emt 0:00:22] Rf4 is the strong threat.} Rxf2 {[%emt 0:00:06]} 69. g4 {[%emt 0:00:12]} Rf7 {[%emt 0:02:07]} 70. Kh4 {[%emt 0:00:04]} Bf3 {[%emt 0:01:14]} 71. Re8+ {[%emt 0:00:11]} Kg7 {[%emt 0:00:26]} 72. g5 {[%emt 0:00:18]} Ra7 {[%emt 0:00:45]} 73. e4 {[%emt 0:00:09] Strongly threatening g6.} Ra4 {[%emt 0:01:43]} 74. h6+ {[%emt 0:00:06]} Kh7 {[%emt 0:00:19]} 75. Re7+ {[%emt 0:00:03]} Kh8 {[%emt 0:00:18]} 76. g6 {[%emt 0:00:13][%cal Re7e8]} Rxe4+ {[%emt 0:00:05]} 77. Rxe4 {[%emt 0:00:03]} Bxe4 {[%emt 0:00:06]} 78. Kg5 {[%emt 0:00:01]} Bxg6 {[%emt 0:00:11]} 79. Kxg6 {[%emt 0:00:02]} Kg8 {[%emt 0:00:06]} 80. h7+ {[%emt 0:00:02]} Kh8 {[%emt 0:00:06]} 81. Kf6 {[%emt 0:00:01]} Kxh7 {[%emt 0:00:10] Blacks defense is rewarded with a draw.   Weighted Error Value: White=0.15 (very precise) /Black=0.20 (precise) .  Missed win:     	White=2     	---        Mistake:       	White=4     	Black=4      Inaccurate:     	White=2     	Black=3      OK:         	White=28    	Black=31     Best:        	White=4     	Black=7      Strong:       	White=3     	Black=5} 1/2-1/2

[Event "Austrian Bundesliga 2023-24"]
[Site "Austria"]
[Date "2024.03.21"]
[Round "8.14"]
[White "Votava, Jan"]
[Black "Vachier-Lagrave, Maxime"]
[Result "0-1"]
[ECO "E06"]
[WhiteElo "2441"]
[BlackElo "2728"]
[Annotator "TA"]
[PlyCount "123"]
[EventDate "2023.10.21"]
[EventType "team-tourn"]
[EventCountry "AUT"]
[SourceTitle "playchess.com"]
[Source "ChessBase"]
[SourceQuality "1"]
[TimeControl "40/5400+30:1800+30"]

{[%evp 28,123,0,0,0,0,0,0,0,0,0,0,0,0,0,0,0,-34,0,0,0,0,0,0,0,-13,-10,-12,-10,-82,-22,-33,0,-106,-83,-116,-101,-102,-103,-99,-31,-188,-191,-211,-211,-195,-221,-273,-284,-395,-337,-387,-334,-332,-314,-341,-334,-360,-176,-213,-197,-191,-187,-183,-193,-196,-183,-205,-174,-331,-317,-279,-176,-1997,-2416,-2720,-2069,-1911,-2459,-2287,-1960,-3272,-4726,-10830,-10830,-10830,-5456,-29980,-29981,-29987,-29988,-29988,-29989,-29989,-29990,-29993,-29994,-29998]} 1. d4 {[%emt 0:00:03]} Nf6 {[%emt 0:00:04]} 2. c4 {[%emt 0:00:06]} e6 {[%emt 0:00:04]} 3. Nf3 {[%emt 0:00:22]} d5 {[%emt 0:00:04]} 4. g3 {[%emt 0:03:43]} Be7 {[%emt 0:00:09]} 5. Bg2 {[%emt 0:00:05]} O-O {[%emt 0:00:04]} 6. O-O {[%emt 0:00:04]} a5 {[%emt 0:00:03]} 7. Nbd2 {[%emt 0:08:31] E06: Closed Catalan: Early deviations.} c5 $146 {[%emt 0:07:32]} ({Predecessor:} 7... c6 8. Qc2 b6 9. e4 Ba6 10. b3 Nbd7 11. Bb2 Rc8 12. Rad1 a4 13. Rfe1 h6 14. bxa4 Qc7 15. e5 Ne8 16. a5 dxc4 17. Nxc4 bxa5 18. Nfd2 Nb6 {½-½ Korobov,A (2690)-Moussard,J (2632) FIDE Grand Swiss 2021 (4)}) 8. cxd5 {[%emt 0:02:14]} exd5 {[%emt 0:00:34]} 9. dxc5 {[%emt 0:01:06]} Nc6 {[%emt 0:09:29]} 10. a4 {[%emt 0:14:10]} Bxc5 {[%emt 0:00:32]} 11. Nb3 {[%emt 0:00:11]} Bb6 {[%emt 0:01:27]} 12. Nbd4 {[%emt 0:05:42]} Re8 {[%emt 0:01:53]} 13. Bg5 {[%emt 0:04:43]} h6 {[%emt 0:01:25]} 14. Bxf6 {[%emt 0:00:31]} Qxf6 {[%emt 0:00:06]} 15. e3 {[%emt 0:00:40]} Bg4 {[%emt 0:02:21]} 16. Qb3 {[%emt 0:15:05]} Nb4 {[%emt 0:00:20]} (16... Bxd4 17. Nxd4 Nxd4 18. exd4 $15) 17. Rfc1 {[%emt 0:01:39]} Rac8 {[%emt 0:04:35]} 18. Rc3 {[%emt 0:01:27]} Bc5 {[%emt 0:00:14]} 19. h3 {[%emt 0:03:26]} Bh5 {[%emt 0:01:44]} 20. Rac1 {[%emt 0:03:13]} b6 {[%emt 0:00:19]} 21. Ne1 {[%emt 0:02:22]} Bg6 {[%emt 0:00:48]} 22. Nb5 {[%emt 0:10:39]} Rcd8 {[%emt 0:06:48]} 23. Nf3 $1 {[%emt 0:02:13]} Be4 {[%emt 0:00:19]} 24. Nfd4 {[%emt 0:01:00]} Qg6 {[%emt 0:00:57]} 25. Rd1 {[%emt 0:13:26]} Bb1 {[%emt 0:02:03]} 26. Rcc1 {[%emt 0:01:46]} Ba2 {[%emt 0:01:14]} 27. Qc3 {[%emt 0:00:56]} Bc4 {[%emt 0:00:10]} 28. Ra1 {[%emt 0:01:20]} (28. Qd2 $1 $11 {remains equal.}) 28... Rc8 {[%emt 0:06:35]} ({Black should play} 28... Bxb5 $17 29. axb5 Rc8) 29. Qd2 {[%emt 0:00:43]} h5 {[%emt 0:01:59]} (29... Bxb5 $5 30. Nxb5 Nc2 $15) 30. h4 {[%emt 0:00:50] [#]} (30. Bf1 $11 {keeps the balance.}) 30... Bxb5 $1 $17 {[%emt 0:03:51]} 31. Nxb5 {[%emt 0:02:30] [#]} Nc2 $1 {[%emt 0:00:07]} 32. Rac1 {[%emt 0:00:06]} Nxe3 $1 {[%emt 0:00:05]} 33. Rxc5 {[%emt 0:00:08]} (33. fxe3 $2 Bxe3+ $19) 33... Rxc5 {[%emt 0:03:08]} (33... bxc5 $17 34. fxe3 Qxg3) 34. fxe3 $2 {[%emt 0:00:03]} ({Only move:} 34. Re1 $1 $15 Rc2 35. Qd4) 34... Qxg3 $19 {[%emt 0:00:10]} 35. Qf2 {[%emt 0:01:26]} Rxe3 {[%emt 0:00:07]} 36. Qxg3 {[%emt 0:00:52]} Rxg3 {[%emt 0:00:05]} 37. Nc3 {[%emt 0:00:48]} Rg4 {[%emt 0:00:18]} 38. Kf2 {[%emt 0:00:46]} d4 {[%emt 0:00:58]} (38... Rxh4 39. Rd2) 39. Ne2 {[%emt 0:00:10]} Rxh4 {[%emt 0:00:47]} 40. Nxd4 {[%emt 0:00:00]} Rc4 {[%emt 0:00:00]} 41. Ke3 {[%emt 0:02:25]} Rxa4 {[%emt 0:03:22]} 42. Nf5 {[%emt 0:00:53]} Rhf4 {[%emt 0:01:20]} (42... Rhb4 $142 43. Rd8+ Kh7) 43. b3 $19 {[%emt 0:09:17]} Rab4 {[%emt 0:00:10]} 44. Ne7+ {[%emt 0:00:11]} Kh7 {[%emt 0:00:05]} 45. Nd5 {[%emt 0:00:06]} Rg4 {[%emt 0:00:32]} (45... Rxb3+ 46. Kxf4 h4 47. Rc1 $18) 46. Nxb4 {[%emt 0:00:15]} Rxg2 {[%emt 0:00:05]} ({Much less strong is} 46... Rxb4 47. Rd7 $17) 47. Nd3 {[%emt 0:00:55]} h4 {[%emt 0:01:04]} 48. Ne5 $2 {[%emt 0:17:56]} (48. Ne1 Rb2 49. Rd3) 48... f6 $19 {[%emt 0:05:37]} 49. Nf3 {[%emt 0:00:20]} Rg4 {[%emt 0:03:13]} ({Not} 49... h3 50. Rh1 $11) 50. Rd4 $2 {[%emt 0:02:54]} (50. Rd5) 50... Rxd4 $19 {[%emt 0:00:06]} 51. Nxd4 {[%emt 0:00:19]} g5 {[%emt 0:00:21]} 52. Kf3 {[%emt 0:00:20]} Kh6 {[%emt 0:00:06]} 53. Nf5+ {[%emt 0:01:28]} Kh5 {[%emt 0:00:08]} 54. Nd6 {[%emt 0:00:23]} g4+ {[%emt 0:00:32]} 55. Kf4 {[%emt 0:00:31]} h3 {[%emt 0:00:07]} 56. Kg3 {[%emt 0:00:29]} Kg5 {[%emt 0:02:23]} 57. Nc4 {[%emt 0:00:37]} f5 {[%emt 0:00:20]} 58. Nxb6 {[%emt 0:00:12]} f4+ {[%emt 0:00:03]} 59. Kh2 {[%emt 0:00:14]} Kh4 {[%emt 0:00:08]} 60. Nc4 {[%emt 0:00:48]} g3+ {[%emt 0:00:05]} 61. Kh1 {[%emt 0:00:44]} f3 {[%emt 0:00:58]} 62. Nxa5 {[%emt 0:00:05]} 0-1